Cogmind - Beta 16.1 @@@ ROGUE MODE // 2026.04.26 @ 14:08:03 Player: Alyssa Result: Destroyed by S-10 Pest with Light Assault Rifle Performance ------------- Evolutions (0) 0 Regions Visited (1) 200 Robots Destroyed (2) 10 Value Destroyed (13) 13 Prototype IDs (0) 0 Alien Tech Used (0) 0 Bonus (0) 0 TOTAL SCORE: 223 Bonus ------- None Cogmind --------- Core Integrity 0/250 Matter 267/300 Energy 85/100 System Corruption 1% Temperature Cool (0) Movement Walking (120) Location -10/Materials Parts ------- > --- POWER (1) -------- (None) > --- PROPULSION (2) --- Aluminum Leg > --- UTILITY (2) ------ Medium Storage Unit > --- WEAPON (2) ------- (None) > --- INVENTORY (10) --- Light Ion Engine Aluminum Leg Medium Storage Unit Medium Laser Peak State ------------ > --- POWER ------------ Ion Engine > --- PROPULSION ------- Wheel Wheel > --- UTILITY ---------- Medium Storage Unit Seismic Detector > --- WEAPON ----------- Medium Laser Assault Rifle > --- INVENTORY -------- Light Ion Engine Light Treads Light Treads Aluminum Leg Aluminum Leg Wheel Wheel Small Storage Unit Medium Storage Unit Light Assault Rifle [Rating: 8] Favorites ----------- Power Ion Engine Engine Ion Engine Propulsion Wheel Treads Light Treads Leg Aluminum Leg Wheel Wheel Utility Medium Storage Unit Device Seismic Detector Storage Medium Storage Unit Weapon Assault Rifle Energy Gun Medium Laser Ballistic Gun Assault Rifle Slashing Weapon Mining Claw Build | -11 -10 ------- Run | Yrd Mat Slots Evolved . | . . Power . | . . Propulsion . | . . Utility . | . . Weapon . | . . Parts Attached 16 | 8 8 Power 1 | 1 . Engine 1 | 1 . Core . | . . Reactor . | . . Propulsion 7 | 2 5 Treads 2 | . 2 Leg 1 | . 1 Wheel 4 | 2 2 Hover . | . . Flight . | . . Utility 3 | 2 1 Device 1 | 1 . Storage 2 | 1 1 Processor . | . . Hackware . | . . Protection . | . . Artifact . | . . Weapon 5 | 3 2 Energy Gun 1 | 1 . Energy Cannon . | . . Ballistic Gun 2 | 2 . Ballistic Cannon . | . . Launcher . | . . Special Weapon . | . . Impact Weapon . | . . Slashing Weapon 2 | . 2 Piercing Weapon . | . . Special Melee Weapon . | . . Unidentified Prototypes . | . . Parts Lost 11 | . 11 Power 1 | . 1 Propulsion 6 | . 6 Utility 1 | . 1 Weapon 3 | . 3 Highest Loss Streak 11 | . 11 To Critical Strikes . | . . Average Backups 7 | 4 8 Power . | . 1 Propulsion 4 | 2 4 Utility . | . 1 Weapon 1 | . 1 Tool/Special . | . . Unused Backups 4 | . 4 Power 1 | . 1 Propulsion 1 | . 1 Utility 2 | . 2 Weapon . | . . Tool/Special . | . . Average Slot Usage (%) 78 | . 78 Engine 9 | . 9 Treads 3 | . 3 Wheel 20 | . 20 Device 7 | . 7 Storage 14 | . 14 Energy Gun 2 | . 2 Ballistic Gun 9 | . 9 Slashing Weapon 9 | . 9 Peak Build Rating 8 | 7 8 Average Rating 5 | 5 6 On Entrance 3 | . 7 Avg Prop Armor Cover (%) 9 | . 9 Naked Turns . | . . Heaviest Build 20 | 15 20 Greatest Support 20 | 20 20 Greatest Overweight (x) 1 | . 1 Average Overweight (x) . | . . Largest Inventory Capacity 10 | 8 10 Average Capacity 9 | 7 9 Most Carried 10 | 8 10 Average Carried 7 | 4 8 Final Capacity 10 | 8 10 Final Carried 8 | 8 4 Class Distribution -------------------- 100% | Mutant Dominant Class ---------------- Mutant | -10/Materials Resources | -11 -10 ----------- Run | Yrd Mat Matter Collected 282 | 276 6 Remotely . | . . Salvage Created 73 | 73 . Parts 6 | 6 . Haulers Intercepted . | . . Recyclers Shooed . | . . Parts Field Recycled . | . . Retrieved Matter . | . . Parts Self-Destructed . | . . Prevented . | . . Parts Restored . | . . Kills | -11 -10 ------- Run | Yrd Mat Combat Hostiles Destroyed . | . . Classes Destroyed 2 | 2 . Tunneler 1 | 1 . Recycler 1 | 1 . Best Kill Streak 2 | 2 . Combat Bots Only . | . . Max Kills in Single Turn 1 | 1 . Gunslinging . | . . Exploded . | . . Melee . | . . Uniques/NPCs Destroyed . | . . Combat | -11 -10 -------- Run | Yrd Mat Hostile Shots Fired 125 | . 125 Missed 28 | . 28 Hits 97 | . 97 Projectile 97 | . 97 Critical Strikes 3 | . 3 Damage Taken 1048 | . 1048 Core 254 | . 254 Absorbed by Shields . | . . Core Remaining (%) 100 | 100 . Volleys Fired 7 | 7 . Largest 2 | 2 . Hottest 50 | 50 . Shots Fired 12 | 12 . Gun 12 | 12 . Cannon . | . . Launcher . | . . Special . | . . Kinetic 10 | 10 . Thermal 2 | 2 . Explosive . | . . Electromagnetic . | . . Robot Hit Streak 6 | 6 . Robot Miss Streak 1 | 1 . Penetration Max . | . . Secondary Targets . | . . Shots Hit Robots 24 | 9 15 Core Hits 5 | 3 2 Critical Kills . | . . Critical Parts Destroyed . | . . Critical Strikes . | . . Melee Attacks 24 | . 24 Impact . | . . Slashing 24 | . 24 Piercing . | . . Sneak Attacks . | . . Combat Hostiles . | . . Follow-up Attacks . | . . Damage Inflicted 423 | 95 328 Guns 95 | 95 . Cannons . | . . Explosions . | . . Melee 327 | . 327 Ramming 1 | . 1 Kinetic 83 | 83 . Thermal 12 | 12 . Explosive . | . . Electromagnetic . | . . Impact . | . . Slashing 327 | . 327 Piercing . | . . Highest Corruption 1 | . 1 Average Corruption 1 | . 1 Corruption Purged . | . . Corruption Blocked . | . . Effects 2 | . 2 Message Errors 1 | . 1 Data Loss (minor) 1 | . 1 Overload Shots . | . . Overflow Damage . | . . Projectiles . | . . Explosions . | . . Melee . | . . Knockbacks . | . . Impact . | . . Kinetic . | . . Secondary . | . . Self-Inflicted Damage . | . . Shots . | . . Rammed 2 | . 2 Targets Rammed 2 | . 2 Kicked . | . . Crushed . | . . Highest Temperature 20 | 20 17 Average Temperature 11 | 12 9 Received Heat Transfer 438 | . 438 Siege Activations . | . . Martial Activations . | . . Shielding Activations . | . . Robots Disrupted . | . . Combat Hostiles . | . . Robots Corrupted . | . . Combat Hostiles . | . . Parts Fried . | . . Impact Corruptions . | . . Robots Melted . | . . Combat Hostiles . | . . Parts Melted . | . . Heat Transferred 37 | 37 . Parts Sabotaged . | . . Parts Stolen . | . . Parts Stripped . | . . Power Chain Reactions . | . . Alert | -11 -10 ------- Run | Yrd Mat Maximum Alert Level . | . . Low Security (%) 100 | 100 100 Level 1 . | . . Level 2 . | . . Level 3 . | . . Level 4 . | . . Level 5 . | . . High Security . | . . Max Security . | . . Peak Influence 15 | 5 15 Initial . | . . Average 3 | 1 3 Influence Increases 85 | 10 75 Destroy 0b10 Robot/NC 10 | 10 . Successful Hack 14 | . 14 Destroy Structure 1 | . 1 Partial Spotted 15 | . 15 Lose Combat Pursuer 45 | . 45 Influence Decreases 85 | 10 75 Time Decay 55 | 10 45 Lost Part 30 | . 30 Squads Dispatched 1 | . 1 Investigation . | . . Extermination . | . . Reinforcement 1 | . 1 Assault . | . . Garrison . | . . Intercept . | . . Searches Triggered . | . . Construction Impeded . | . . Haulers Reinforced . | . . Active Scanning Responses . | . . Cargo Convoy Interrupts . | . . Stealth | -11 -10 --------- Run | Yrd Mat Distress Signals 2 | . 2 Communications Jammed . | . . Distress Signals . | . . Times Spotted 14 | . 14 Peak Tracking Total 9 | . 9 Tactical Retreats 3 | . 3 Traps | -11 -10 ------- Run | Yrd Mat Traps Triggered 1 | . 1 Indirectly . | . . Trap Hack Attempts . | . . Triggered . | . . Disarmed . | . . Reprogrammed . | . . Reused . | . . Traps Extracted . | . . Installed . | . . Triggered . | . . Machines | -11 -10 ---------- Run | Yrd Mat Machines Disabled . | . . Max in Single Turn . | . . Machines Repaired . | . . Machines Dismantled . | . . Machines Sabotaged . | . . Overloaded Fab Kills . | . . Hacking | -11 -10 --------- Run | Yrd Mat Machines Accessed 4 | . 4 Terminals 3 | . 3 Fabricators . | . . Repair Stations . | . . Recycling Units 1 | . 1 Scanalyzers . | . . Garrison Access . | . . Total Hacks 8 | . 8 Successful 3 | . 3 Failed 5 | . 5 Catastrophic 1 | . 1 Database Lockouts . | . . Manual 3 | . 3 Terminals 7 | . 7 Fabricators . | . . Repair Stations . | . . Recycling Units 1 | . 1 Scanalyzers . | . . Garrison Access . | . . Terminal Hacks 2 | . 2 Terminal Index 1 | . 1 Registered Components 1 | . 1 Fabricator Hacks . | . . Repair Station Hacks . | . . Recycling Unit Hacks 1 | . 1 Report Inventory 1 | . 1 Scanalyzer . | . . Garrison Access Hacks . | . . Unauthorized Hacks . | . . Terminals . | . . Fabricators . | . . Repair Stations . | . . Recycling Units . | . . Scanalyzers . | . . Garrison Access . | . . Data Cores Recovered . | . . Used . | . . Hacking Detections 3 | . 3 Full Trace Events . | . . Feedback Events . | . . Feedback Blocked . | . . Robot Schematics Acquired . | . . Robots Built . | . . Authchips . | . . Time . | . . Total Robot Build Rating . | . . Part Schematics Acquired . | . . Parts Built . | . . Authchips . | . . Time . | . . Total Part Build Rating . | . . Part Studies Acquired . | . . Parts Repaired . | . . Time . | . . Parts Recycled . | . . Recycled Matter . | . . Retrieved Matter . | . . Retrieved Components . | . . Parts Scanalyzed . | . . Part Schematics Acquired . | . . Parts Damaged . | . . Bothacking | -11 -10 ------------ Run | Yrd Mat Used RIF Installer . | . . Robots Hacked . | . . Non-combat . | . . Combat . | . . Robot Hacks Applied . | . . Relay Couplers Released . | . . Fabnet Peak Effective % . | . . Robots Rewired . | . . Allies Hacked . | . . Hacks Repelled . | . . Allies | -11 -10 -------- Run | Yrd Mat Total Allies . | . . Largest Group . | . . Highest-Rated Group . | . . Highest-Rated Ally . | . . Total Orders . | . . Ally Attacks . | . . Total Damage . | . . Kills . | . . Allies Corrupted . | . . Allies Melted . | . . Intel | -11 -10 ------- Run | Yrd Mat Active Infowar (turns) 126 | 8 118 Seismic 126 | 8 118 Robot Analysis Total . | . . Derelict Logs Recovered . | . . Drone Launches . | . . Drone Recoveries . | . . Exploration | -11 -10 ------------- Run | Yrd Mat Turns Passed 304 | 81 223 Spaces Moved 190 | 54 136 Core 1 | 1 . Treads 24 | . 24 Legs . | . . Wheels 165 | 53 112 Hover . | . . Flight . | . . Fastest Speed 50 | 50 80 Average Speed 90 | 79 94 Slowest Speed 160 | 80 160 Overloaded Moves . | . . Propulsion Burnouts . | . . Robots Hopped . | . . Potential Cave-ins . | . . Cave-ins Triggered . | . . Exploration Rate (%) 20 | 3 37 Regions Visited 1 Branch Regions . Pre-discovered Areas . | . . Known Exits Taken . | . . Unknown Exits Taken 1 | 1 . Scrap Searched . | . . Spaces Dug 1 | . 1 Terrain Destroyed 1 | . 1 Melee 1 | . 1 Projectile . | . . AOE . | . . Terrain Rammed . | . . Walls Destroyed . | . . Machines Disabled . | . . Actions | -11 -10 --------- Run | Yrd Mat Total 259 | 76 183 Wait 6 | . 6 Move 189 | 53 136 Hop . | . . Pick Up 11 | 8 3 Fast Attach 8 | 7 1 Attach 6 | . 6 Detach 1 | . 1 Swap 2 | 1 1 Drop 3 | . 3 Fire 7 | 7 . Melee 24 | . 24 Ram . | . . Kick . | . . Crush 2 | . 2 Escape Stasis . | . . Rewire . | . . Trap . | . . Miscellaneous . | . . Route ------- -11/Scrapyard -10/Materials History --------- Turn | Location | Event 2 | -11/Scrapyard | Met Revision 17 29 | -11/Scrapyard | Discovered new exit (range 15) 82 | -11/Scrapyard | Entered Materials 237 | -10/Materials | Core integrity fell below 50% 281 | -10/Materials | Core integrity fell below 20% 305 | -10/Materials | Destroyed by S-10 Pest with Light Assault Rifle Last Messages --------------- 00216_ Critical hit (Burn: +37). 00220_ Matter Filter disabled. 00221_ Acquired 6 matter. 00223_ System corrupted: Component data lost. 00225_ K-01 Serf collects debris. 00230_ Assault Rifle destroyed. 00231_ K-01 Serf collects debris. 00237_ Ion Engine destroyed. 00241_ Wheel destroyed. 00241_ K-01 Serf collects debris. 00245_ Mining Claw destroyed. 00247_ K-01 Serf collects debris. 00256_ Critical hit (Burn: +37). 00264_ M-13 Machinist repairs G-47 Trooper. 00268_ Wheel destroyed. 00274_ Mining Claw destroyed. 00275_ Slammed into K-01 Serf. 00275_ Lgt. Treads destroyed. 00279_ Slammed into G-34 Mercenary. 00304_ Lgt. Treads destroyed. Map ----- +----------------------------------------------------+ | ???# ?????? ???????????????? | | ??## ##????? ??????????????? | | ### #????# #??????????????? | | #????# #??????????????? | | T #????# #??????????????? | | #???## ##?????????????? | | ??# #???# #?????????????? | | ?####+#####?# #?????????????? | | ?# #?# #?????????????? | | ?# " """ #?? #?????????????? | | ?#! """"" #?? #?????????????? | | ?# """"" #??# #??????????????? | | ?# """"" #??# #??????????????? | | ?# """"" #### #???########???? | | ?# """"" / #???# | #???? | | ?# """"" #### #???# #???? | | ?# #??### #???# #???? | | ?####+#####????# #???# #???? | | ????# #?########/##??# ! #???? | | ????# #?# #??# #???? | | ??### ### ! ####+##s####??? | | ### # [ / gg #??? | | T" # ! ####g #??? | | " + """ #??# s #??? | | # """ #??# s #??? | | ### # "Y" """ #??# ##@##+#??? | | ### ## """ #??# ## ????? | | ##?# #######+####??# ## ??? | | ???# #?????????????# ## ! #? | | ???# #?????????????? ?# #? | | ???# #?????????????? ?##+#####? | | ???# #?????????????? ?????????? | | ???? #?????????????? ?????????? | | ???? ??????????????#?????????? | | ???? ????????????????????????? | | ????? ????????????????????????? | | ????? ????????????????????????? | | ????? ??????????????????????????? | | ??????????????????????????*?????? | | ????????????????????????????????? | | ????????????????????????????????? | | ????????????????????????????????? | | ????????????????????????????????? | | ????????????????????????????????? | | ????????????????????????????????? | | ????????????????????????????????? | | ????????????????????????????????? | | ????????????????????????????????? | | ????????????????????????????????? | | ????????????????????????????????? | +----------------------------------------------------+ Best States ------------- Heat Dissipation 25 Energy Generation 10 Energy Capacity 250 Matter Stores 276 Matter Capacity 300 Sight Range 16 Terrain Scan Density 10 Evasion (%) 44 Recoil Reduction 1 Item Schematics ----------------- None Robot Schematics ------------------ None Fabricated ------------ Nothing Repaired ---------- Nothing Studied --------- None Alien Tech Used ----------------- None Achievements -------------- You Again Challenges ------------ None Game ------ Seed GreatSmallInsulator Manual? 0 Play Time 00:11:42 Cumulative 40.3 hours Start 2026.04.26 @ 13:56:38 End 2026.04.26 @ 14:08:03 Sessions 1 Manual Loads 0 Difficulty Rogue Special Mode None Game No. 29 Rogue 29 Adventurer 0 Explorer 0 Win Type - Total 0 Types 0/0/0/0/0/0/0/0/0/0 Lore% 15 Gallery% 30 Achievement% 16 Wizard Run 0 Options --------- Layout 1 ASCII 1 Keyboard 1 Movement Numpad Keybinds 0 Fullscreen 1 Font 48/Smallcaps Map View 50x35 Zoom Use 0% Tactical HUD 1 Map Filters NONE Filters NONE Steam 1 RUN: a013f899-c251-4a00-97d5-b25704675742